bitfinex/quotes_SOLUSD_20250809
["timestamp","ask_amount","ask_price","bid_price","bid_amount"]
[1754772052583,6.13881325,183.19,183.17,0.2]
[1754772053100,0.68,183.18,183.14,9.16382516]
[1754772053397,19.10584638,183.19,183.15,9.16382516]
[1754772053398,0.68,183.17,183.15,9.16382516]
[1754772053595,0.68,183.17,183.12,15.10621557]
[1754772053791,0.68,183.17,183.14,35.16382516]
[1754772053989,0.68,183.17,183.14,9.16382516]
[1754772054598,5.45970735,183.16,183.15,41.79621557]
[1754772054781,5.45970735,183.16,183.15,50.27004073]
[1754772056393,13.64703313,183.19,183.15,50.27004073]
[1754772056574,13.64703313,183.19,183.18,9.16382516]
[1754772057080,5.45851528,183.2,183.18,9.16382516]
[1754772057285,27.27637353,183.31,183.19,24.27004073]
[1754772057486,0.68,183.29,183.22,26.0]
[1754772057704,0.68,183.29,183.25,9.16382516]
[1754772057907,0.68,183.29,183.27,9.16382516]
[1754772058204,0.68,183.29,183.23,15.10621557]
[1754772058398,0.68,183.29,183.28,9.16382516]
[1754772058575,5.45613269,183.28,183.27,9.16382516]
[1754772058770,6.13613269,183.28,183.27,9.16382516]
[1754772059495,19.77646442,183.28,183.27,9.16382516]
[1754772059872,19.77646442,183.28,183.23,15.10621557]
[1754772060078,19.81646442,183.28,183.27,9.16382516]
[1754772060304,56.26095304,183.28,183.2,15.10621557]
[1754772060605,19.0985485,183.26,183.17,15.10621557]
[1754772060787,9.16382516,183.24,183.19,9.16382516]
[1754772060984,9.88382516,183.23,183.15,0.71]
[1754772061205,9.16382516,183.21,183.16,9.16382516]
[1754772061385,0.72,183.2,183.16,9.16382516]
[1754772061576,0.72,183.19,183.15,9.16382516]
[1754772061900,0.72,183.23,183.18,9.16382516]
[1754772062109,9.16382516,183.24,183.19,9.16382516]
[1754772062286,0.72,183.22,183.19,9.16382516]
[1754772062805,19.1037607,183.21,183.19,9.16382516]
[1754772063101,0.72,183.2,183.13,15.10621557]
[1754772063401,9.88382516,183.2,183.13,15.10621557]
[1754772063600,9.88382516,183.2,183.1,15.106215]
[1754772063601,0.72,183.19,183.11,15.10621557]
[1754772063803,9.88382516,183.19,183.14,9.16382516]
[1754772064009,0.72,183.18,183.14,9.16382516]
[1754772064201,9.16382516,183.2,183.14,9.16382516]
[1754772064391,9.16382516,183.18,183.13,9.16382516]
[1754772064713,5.45970735,183.16,183.14,9.16382516]
[1754772064909,5.45970735,183.16,183.15,9.16382516]
[1754772065494,19.10897574,183.16,183.13,41.10621557]
[1754772065694,19.10897574,183.16,183.1,42.10294553]
[1754772065913,19.10897574,183.16,183.08,17.099413]
[1754772065914,19.82897574,183.16,183.12,9.16382516]
[1754772066208,19.10897574,183.16,183.14,9.16382516]
[1754772066417,19.10897574,183.16,183.15,9.16382516]
[1754772066710,19.10584638,183.19,183.12,26.0]
[1754772067016,46.39991264,183.19,183.12,26.0]
[1754772067196,46.39991264,183.19,183.09,15.10621557]
[1754772067197,9.16382516,183.16,183.09,15.10621557]
[1754772067399,46.39991264,183.19,183.07,39.46]
[1754772067400,9.88382516,183.15,183.07,39.46]
[1754772067713,9.16382516,183.14,183.09,9.16382516]
[1754772067902,0.72,183.13,183.08,24.33004073]
[1754772068095,0.72,183.13,183.09,9.16382516]
[1754772068801,5.46089995,183.12,183.1,9.16382516]
[1754772069721,5.46089995,183.12,183.11,9.16382516]
[1754772069898,19.11314984,183.12,183.08,41.16621557]
[1754772070105,19.11314984,183.12,183.1,9.16382516]
[1754772070301,19.11314984,183.12,183.08,41.16621557]
[1754772070302,19.83314984,183.12,183.09,9.16382516]
[1754772070502,0.72,183.11,183.08,0.06]
[1754772070804,13.65224989,183.12,183.09,9.16382516]
[1754772071716,13.65224989,183.12,183.08,0.06]
[1754772072023,14.37224989,183.12,183.08,9.22382516]
[1754772073394,19.83314984,183.12,183.08,9.22382516]
[1754772073793,19.83314984,183.12,183.08,0.06]
[1754772074011,9.16382516,183.09,183.08,0.06]
[1754772074199,9.16382516,183.1,183.08,0.06]
[1754772074406,0.72,183.09,183.08,0.06]
[1754772075225,0.72,183.09,183.04,17.81353975]
[1754772075395,5.46209307,183.08,183.05,9.16382516]
[1754772075894,5.46209307,183.08,183.04,107.41353975]
[1754772076219,5.46209307,183.08,183.06,9.16382516]
[1754772078020,5.46209307,183.08,183.07,9.16382516]
[1754772078895,13.65476123,183.09,183.07,9.16382516]
[1754772079320,14.37476123,183.09,183.07,9.16382516]
[1754772079725,14.37476123,183.09,183.04,15.10621557]
[1754772080024,14.37476123,183.09,183.07,9.16382516]
[1754772080536,14.37476123,183.09,183.06,9.16382516]
[1754772080826,19.83655597,183.09,183.06,9.16382516]
[1754772081928,19.83655597,183.09,183.04,15.10621557]
[1754772082229,0.72,183.08,183.04,15.10621557]
[1754772082551,0.72,183.07,183.04,9.16382516]
[1754772082896,5.46268982,183.06,183.05,26.0]
[1754772083092,5.46268982,183.06,183.05,35.16382516]
[1754772084912,19.11655597,183.09,183.05,35.16382516]
[1754772085107,19.11655597,183.09,183.03,3.42020472]
[1754772085108,19.11655597,183.09,183.06,9.16382516]
[1754772085320,19.83655597,183.09,183.06,9.16382516]
[1754772085626,5.46089995,183.12,183.08,9.16382516]
[1754772085928,5.46089995,183.12,183.11,9.16382516]
[1754772086921,5.46030359,183.14,183.11,9.16382516]
[1754772087137,6.18030359,183.14,183.12,9.16382516]
[1754772087514,6.18030359,183.14,183.13,9.16382516]
[1754772087915,5.46030359,183.14,183.13,9.16382516]
[1754772091238,5.48970735,183.16,183.13,9.16382516]
[1754772091438,5.48970735,183.16,183.15,9.16382516]
[1754772092023,47.12751253,183.16,183.04,0.66]
[1754772092333,9.85382516,183.15,183.05,24.27004073]
[1754772092548,41.11,183.14,183.06,26.0]
[1754772092729,0.69,183.13,183.06,26.0]
[1754772092932,0.69,183.13,183.04,9.16382516]
[1754772093117,5.46209307,183.08,183.03,9.16382516]
[1754772093443,6.15209307,183.08,183.04,35.16382516]
[1754772093614,6.15209307,183.08,183.04,9.16382516]
[1754772094019,6.15209307,183.08,183.04,35.16382516]
[1754772094824,6.15209307,183.08,183.05,9.16382516]
[1754772095057,5.46209307,183.08,183.05,9.16382516]
[1754772095819,19.11674635,183.09,183.05,9.16382516]
[1754772096143,19.80674635,183.09,183.05,9.16382516]
[1754772096846,19.11674635,183.09,183.05,9.16382516]
[1754772097030,0.69,183.08,183.05,9.16382516]
[1754772097351,19.11674635,183.09,183.06,24.27004073]
[1754772097924,5.46179474,183.09,183.06,24.27004073]
[1754772099119,5.46179474,183.09,183.06,15.10621557]
[1754772099355,5.46179474,183.09,183.08,24.27004073]
[1754772100248,19.11340811,183.12,183.09,15.10621557]
[1754772100457,19.11340811,183.12,183.09,24.27004073]
[1754772100749,19.80340811,183.12,183.09,24.27004073]
[1754772100932,19.80340811,183.12,183.08,15.10621557]
[1754772102262,5.46089995,183.12,183.11,24.27004073]
[1754772103560,5.46030359,183.14,183.11,24.27004073]
[1754772103761,5.46030359,183.14,183.13,9.16382516]
[1754772104560,6.15030359,183.14,183.13,9.16382516]
[1754772105434,5.46008453,183.15,183.11,15.10621557]
[1754772105633,0.69,183.14,183.11,35.16382516]
[1754772105842,0.69,183.14,183.12,15.10621557]
[1754772106152,19.11009818,183.15,183.12,15.10621557]
[1754772106153,0.69,183.13,183.12,15.10621557]
[1754772106832,6.15060175,183.13,183.12,15.10621557]
[1754772108231,5.46060175,183.13,183.12,15.10621557]
[1754772108834,5.46030359,183.14,183.12,15.10621557]
[1754772109360,6.15030359,183.14,183.12,15.10621557]
[1754772109859,6.15030359,183.14,183.12,15.60621557]
[1754772111765,5.48979233,183.16,183.13,9.82382516]
[1754772112263,6.17979233,183.16,183.13,9.16382516]
[1754772112645,5.48979233,183.16,183.14,9.16382516]
[1754772112964,0.03,183.16,183.14,9.16382516]
[1754772113662,0.03,183.16,183.12,15.10621557]
[1754772113846,0.03,183.16,183.14,9.16382516]
[1754772115037,0.03,183.16,183.12,15.10621557]
[1754772115238,0.69,183.15,183.11,9.16382516]
[1754772115459,0.69,183.14,183.12,9.16382516]
[1754772115764,0.69,183.14,183.12,0.5]
[1754772115952,40.73,183.14,183.12,0.5]
[1754772116159,0.69,183.13,183.05,0.66]
[1754772116371,0.69,183.13,183.08,9.16382516]
[1754772117058,9.85382516,183.13,183.08,9.16382516]
[1754772117376,6.15089995,183.12,183.08,9.16382516]
[1754772117882,0.69,183.11,183.07,26.0]
[1754772118048,0.69,183.11,183.08,9.16382516]
[1754772118379,0.69,183.11,183.09,9.16382516]
[1754772118559,6.15064506,183.13,183.09,9.16382516]
[1754772118754,5.46064506,183.13,183.09,9.16382516]
[1754772118962,0.69,183.12,183.09,9.16382516]
[1754772119562,0.69,183.12,183.07,26.66]
[1754772119860,0.69,183.12,183.09,9.16382516]
[1754772120946,0.69,183.12,183.07,26.66]
[1754772121143,0.69,183.12,183.09,9.16382516]
[1754772121574,0.71,183.11,183.07,26.0]
[1754772121788,0.71,183.1,183.0,0.06]
[1754772121948,9.16382516,183.05,183.0,0.06]
[1754772122148,9.16382516,183.05,183.0,35.22382516]
[1754772122149,0.71,183.04,183.0,35.22382516]
[1754772122381,39.92,183.05,183.0,35.22382516]
[1754772122889,40.63,183.05,183.0,9.22382516]
[1754772123376,40.63,183.05,183.01,9.22382516]
[1754772123573,0.71,183.04,183.01,0.06]
[1754772124188,0.71,183.04,183.01,9.22382516]
[1754772124390,0.71,183.04,183.01,0.06]
[1754772125370,0.71,183.08,183.03,9.16382516]
[1754772125568,39.9,183.07,183.04,9.16382516]
[1754772125965,40.61,183.07,183.04,9.16382516]
[1754772126162,39.9,183.07,183.04,9.16382516]
[1754772126362,0.71,183.06,183.04,9.16382516]
[1754772127277,9.87382516,183.05,183.01,0.06]
[1754772127606,9.16382516,183.03,183.01,0.06]
[1754772127972,0.71,183.03,183.01,0.06]
[1754772128284,40.55,183.02,183.01,0.06]
[1754772128481,0.71,183.05,183.01,0.06]
[1754772128686,0.71,183.04,183.01,9.22382516]
[1754772128877,39.84,183.06,183.01,0.72]
[1754772129082,39.84,183.06,183.03,9.16382516]
[1754772129276,0.71,183.06,183.03,9.16382516]
[1754772129593,0.71,183.06,183.01,0.72]
[1754772129594,39.82,183.08,183.05,9.16382516]
[1754772129799,30.07980239,183.16,183.07,9.16382516]
[1754772130114,0.71,183.11,183.09,9.16382516]
[1754772130762,0.71,183.11,183.05,0.66]
[1754772130963,0.71,183.11,183.09,9.16382516]
[1754772131268,0.71,183.11,183.05,0.66]
[1754772131269,6.17123366,183.11,183.05,0.66]
[1754772131488,6.17123366,183.11,183.08,9.16382516]
[1754772132284,0.71,183.11,183.08,9.16382516]
[1754772132504,6.17066974,183.13,183.09,9.16382516]
[1754772132688,6.17066974,183.13,183.1,9.16382516]
[1754772133403,5.46066974,183.13,183.1,9.16382516]
[1754772133576,0.71,183.12,183.1,9.16382516]
[1754772133771,0.71,183.12,183.07,15.10621557]
[1754772133977,9.87382516,183.12,183.07,9.16382516]
[1754772134188,0.71,183.11,183.04,41.10621557]
[1754772134391,49.65382516,183.11,183.04,41.10621557]
[1754772134683,9.87382516,183.1,183.05,9.16382516]
[1754772134888,0.71,183.09,183.05,9.16382516]
[1754772135181,0.71,183.08,183.05,9.16382516]
[1754772135782,0.71,183.08,183.04,26.0]
[1754772135984,0.71,183.08,183.05,9.16382516]
[1754772138102,0.71,183.08,183.06,9.16382516]
[1754772139308,6.17149645,183.1,183.06,9.16382516]
[1754772139481,0.71,183.09,183.06,9.16382516]
[1754772139909,0.71,183.08,183.05,9.16382516]
[1754772140481,5.46149645,183.1,183.07,9.16382516]
[1754772140482,0.71,183.1,183.07,9.16382516]
[1754772141787,5.46179474,183.09,183.07,9.16382516]
[1754772142305,6.17179474,183.09,183.07,9.16382516]
[1754772142883,5.46156942,183.1,183.07,9.16382516]
[1754772143115,6.17156942,183.1,183.07,9.16382516]
[1754772144707,6.17156942,183.1,183.07,5.63929174]
[1754772145204,0.71,183.09,183.07,5.63929174]
[1754772145607,6.17186894,183.09,183.05,0.72]
[1754772145809,6.17186894,183.09,183.06,5.63929174]
[1754772146730,5.46186894,183.09,183.05,0.06]
[1754772146880,5.63929174,183.06,183.05,0.06]
[1754772147085,45.23929174,183.06,183.05,0.06]
[1754772147390,51.41198156,183.06,183.03,0.06]
[1754772147590,5.63929174,183.04,183.03,0.06]
[1754772147984,6.34929174,183.04,183.03,0.06]
[1754772148803,0.71,183.04,183.03,0.06]
[1754772148984,6.34929174,183.04,183.03,0.06]
[1754772149305,11.81257845,183.04,183.03,0.06]
[1754772149511,6.17328671,183.04,183.03,0.06]
[1754772149696,11.81257845,183.04,183.03,0.06]
[1754772150785,15.374346,183.04,183.03,0.06]
[1754772150991,17.561752,183.04,183.03,0.06]
[1754772151801,5.46328671,183.04,183.03,0.06]
[1754772152114,57.141393,183.04,183.03,0.06]
[1754772153496,66.34245229,183.04,183.01,0.06]
[1754772153696,9.20105929,183.02,183.01,0.06]
[1754772154112,9.91105929,183.02,183.01,0.06]
[1754772154799,15.37494301,183.02,183.01,0.06]
[1754772157119,17.56246801,183.02,183.01,0.06]
[1754772157688,8.36140872,183.02,183.01,0.06]
[1754772158016,5.46388372,183.02,183.01,0.06]
[1754772158791,14.66494301,183.02,183.01,0.06]
[1754772159423,15.37494301,183.02,183.01,0.06]
[1754772163007,41.10621557,183.01,182.97,0.06]
[1754772163196,35.20105929,182.98,182.97,0.06]
[1754772163614,35.91105929,182.98,182.97,0.06]
[1754772163810,41.37613744,182.98,182.97,0.06]
[1754772165026,41.37613744,182.98,182.95,0.06]
[1754772165209,9.20105929,182.96,182.95,0.06]
[1754772165613,9.91105929,182.96,182.95,0.06]
[1754772165820,5.4659743,182.95,182.91,0.06]
[1754772166018,9.20105929,182.92,182.91,0.06]
[1754772166927,15.37793005,182.92,182.91,0.06]
[1754772167128,14.66793005,182.92,182.91,0.06]
[1754772167995,16.85641305,182.92,182.91,0.06]
[1754772169005,17.56641305,182.92,182.91,0.06]
[1754772170524,8.36535376,182.92,182.91,0.06]
[1754772171021,7.65535376,182.92,182.91,0.06]
[1754772171329,16.85641305,182.92,182.91,0.06]
[1754772172126,17.56641305,182.92,182.91,0.06]
[1754772172727,53.32539075,182.98,182.91,6.39866472]
[1754772172728,14.37299449,182.98,182.91,6.39866472]
[1754772172907,14.37299449,182.98,182.92,0.69]
[1754772172908,2.188124,182.96,182.92,0.69]
[1754772173107,7.83678872,182.96,182.92,0.69]
[1754772175216,44.8459743,182.95,182.92,0.69]
[1754772175419,39.36,182.94,182.92,0.69]
[1754772176320,44.82644718,182.94,182.92,0.69]
[1754772176825,39.36,182.93,182.91,5.70866472]
[1754772177038,39.36,182.93,182.92,0.69]
[1754772177807,2.188124,182.96,182.92,6.33866472]
[1754772178119,2.188124,182.96,182.95,5.64866472]
[1754772178333,5.46477949,182.99,182.95,6.33866472]
[1754772178638,5.46477949,182.99,182.97,5.64866472]
[1754772178808,5.46477949,182.99,182.98,5.64866472]
[1754772179423,5.46477949,182.99,182.97,6.33866472]
[1754772179624,5.46477949,182.99,182.97,5.64866472]
[1754772180538,6.17477949,182.99,182.93,26.0]
[1754772180733,5.64866472,182.94,182.91,0.06]
[1754772180936,44.96866472,182.93,182.91,0.06]
[1754772181944,44.78665931,182.93,182.91,0.06]
[1754772182121,0.03,183.0,182.92,6.32866472]
[1754772182312,2.188005,182.96,182.93,6.32866472]
[1754772182514,41.488005,182.96,182.94,0.68]
[1754772183143,39.3,182.96,182.94,0.68]
[1754772184257,39.3,182.96,182.93,5.64866472]
[1754772184556,44.76570556,182.96,182.93,6.32866472]
[1754772185150,44.76570556,182.96,182.94,0.06]
[1754772185455,5.46537683,182.97,182.94,5.70866472]
[1754772185646,5.46537683,182.97,182.94,0.06]
[1754772185850,39.28,182.96,182.94,5.70866472]
[1754772187266,5.648665,182.98,182.95,6.32866472]
[1754772187431,5.648665,182.98,182.97,5.64866472]
[1754772187432,44.928665,182.98,182.97,5.64866472]
[1754772187630,39.28,182.98,182.97,5.64866472]
[1754772188054,44.74507815,182.98,182.96,6.32866472]
[1754772188256,44.74507815,182.98,182.95,5.64866472]
[1754772188733,45.45507815,182.98,182.95,5.64866472]
[1754772190135,39.28,182.98,182.95,0.68]
[1754772190333,44.74513166,182.98,182.96,5.64866472]
[1754772190661,39.28,182.98,182.96,5.64866472]
[1754772191040,44.74509619,182.98,182.96,5.64866472]
[1754772191359,45.45509619,182.98,182.96,5.64866472]
[1754772191659,44.74509619,182.98,182.96,5.64866472]
[1754772192358,44.74509619,182.98,182.97,5.64866472]
[1754772192546,44.74509619,182.98,182.96,5.64866472]
[1754772192857,39.28,182.98,182.97,5.64866472]
[1754772197029,39.28,182.98,182.97,6.32866472]
[1754772197461,39.28,182.98,182.97,5.64866472]
[1754772199362,0.03,183.0,182.97,5.64866472]
[1754772199544,39.14,182.99,182.98,5.64866472]
[1754772200332,39.14,182.99,182.95,90.28]
[1754772200562,0.71,182.98,182.97,5.64866472]
[1754772202361,0.71,182.98,182.97,0.5]
[1754772203238,39.14,182.99,182.97,6.14866472]
[1754772203465,45.31481191,182.99,182.97,6.14866472]
[1754772203769,0.71,182.98,182.97,0.5]
[1754772204067,0.71,182.98,182.97,6.14866472]
[1754772205368,0.71,182.98,182.97,0.5]
[1754772205537,11.82374287,182.98,182.97,0.5]
[1754772205737,11.82374287,182.98,182.94,0.06]
[1754772205967,39.85,182.97,182.94,0.06]
[1754772206349,39.14,182.97,182.94,0.06]
[1754772206556,0.71,182.96,182.94,0.06]
[1754772206760,39.14,182.95,182.94,0.06]
[1754772206938,6.17516204,182.98,182.94,6.38866472]
[1754772207139,39.14,182.97,182.94,6.38866472]
[1754772207463,39.14,182.97,182.95,5.64866472]
[1754772207634,39.85,182.97,182.95,5.64866472]
[1754772208142,39.14,182.97,182.95,5.64866472]
[1754772208348,0.71,182.96,182.95,5.64866472]
[1754772209143,39.14,182.97,182.95,5.64866472]
[1754772210840,45.26543967,182.97,182.95,5.64866472]
[1754772211044,0.66,182.96,182.95,5.64866472]
[1754772211842,0.66,182.96,182.94,5.70866472]
[1754772212042,39.14,182.97,182.94,5.70866472]
[1754772212268,45.26543543,182.97,182.94,5.70866472]
[1754772212680,0.66,182.96,182.94,5.70866472]
[1754772213349,0.66,182.96,182.95,5.64866472]
[1754772213663,0.66,182.96,182.94,5.70866472]
[1754772214364,0.66,182.96,182.95,5.64866472]
[1754772214571,44.60543543,182.97,182.95,5.64866472]
[1754772215683,44.60543543,182.97,182.96,5.64866472]
[1754772215988,39.14,182.97,182.96,5.64866472]
[1754772216186,39.14,182.97,182.95,5.64866472]
[1754772216397,39.8,182.97,182.95,5.64866472]
[1754772217191,0.66,182.96,182.94,5.70866472]
[1754772217861,39.14,182.97,182.95,5.64866472]
[1754772218260,39.8,182.97,182.95,5.64866472]
[1754772218791,39.14,182.97,182.96,5.64866472]
[1754772218989,39.14,182.97,182.95,0.71]
[1754772219179,39.14,182.97,182.96,5.64866472]
[1754772219490,0.03,183.0,182.96,5.64866472]
[1754772219668,39.14,182.99,182.98,5.64866472]
[1754772220061,39.8,182.99,182.98,5.64866472]
[1754772220798,39.8,182.99,182.97,5.64866472]
[1754772220981,44.60482277,182.99,182.97,5.64866472]
[1754772221291,0.66,182.98,182.96,5.64866472]
[1754772222673,0.66,182.98,182.97,5.64866472]
[1754772223666,39.14,182.99,182.97,5.64866472]
[1754772223894,39.8,182.99,182.97,5.64866472]
[1754772224372,45.26483858,182.99,182.97,5.64866472]
[1754772224577,39.8,182.99,182.97,5.64866472]
[1754772225585,0.66,182.98,182.97,5.64866472]
[1754772226189,39.14,182.99,182.97,5.64866472]
[1754772226378,45.26487857,182.99,182.97,5.64866472]
[1754772226596,44.60487857,182.99,182.97,5.64866472]
[1754772226897,0.66,182.98,182.97,5.64866472]
[1754772227268,39.14,182.99,182.97,5.64866472]
[1754772227488,39.14,182.99,182.98,5.64866472]
[1754772227694,39.8,182.99,182.98,5.64866472]
[1754772228087,39.8,182.99,182.97,5.64866472]
[1754772228964,45.26483413,182.99,182.97,5.64866472]
[1754772229171,0.66,182.98,182.97,5.64866472]
[1754772229498,6.12518474,182.98,182.95,5.64866472]
[1754772229797,39.78,182.97,182.95,5.70866472]
[1754772229999,39.78,182.97,182.96,5.64866472]
[1754772230800,39.12,182.97,182.96,5.64866472]
[1754772232394,0.03,182.99,182.98,26.0]
[1754772232600,0.03,182.99,182.98,32.35866472]
[1754772234482,0.03,182.99,182.98,142.52995844]
[1754772234805,0.03,182.99,182.98,181.64995844]
[1754772235375,0.03,182.99,182.98,176.18488029]
[1754772235883,0.03,182.99,182.98,121.24866472]
[1754772238701,0.03,182.99,182.98,31.64866472]
[1754772240404,0.03,182.99,182.98,32.34866472]
[1754772241099,0.03,182.99,182.98,31.64866472]
[1754772242889,0.73,182.99,182.98,31.64866472]
[1754772243405,0.03,182.99,182.98,31.64866472]
[1754772245492,0.03,182.99,182.98,32.34866472]
[1754772245699,0.03,182.99,182.98,31.64866472]
[1754772246976,0.73,182.99,182.98,31.64866472]
[1754772248785,0.03,182.99,182.98,31.64866472]
[1754772249281,0.03,182.99,182.98,32.34866472]
[1754772249502,0.03,182.99,182.98,31.64866472]
[1754772251011,0.03,182.99,182.98,26.0]
[1754772251219,0.03,182.99,182.98,31.64866472]
[1754772252215,0.03,182.99,182.98,32.34866472]
[1754772252606,0.03,182.99,182.98,31.64866472]
[1754772252823,0.03,182.99,182.98,32.34866472]
[1754772254922,0.03,182.99,182.98,91.99995844]
[1754772255291,0.03,183.02,183.01,26.0]
[1754772255524,0.03,183.02,183.01,70.72866472]
[1754772255698,0.03,183.02,183.01,71.42866472]
[1754772256214,0.03,183.02,183.01,65.78]
[1754772256414,0.03,183.02,183.01,70.72866472]
[1754772257703,0.03,183.02,183.01,85.83488029]
[1754772259922,0.03,183.02,183.01,91.29906257]
[1754772260122,0.03,183.02,183.01,85.83488029]
[1754772260324,0.73,183.02,182.96,5.46558644]
[1754772260536,0.73,183.02,182.97,54.18621557]
[1754772260814,0.73,183.02,182.99,5.64866472]
[1754772261523,0.03,183.02,182.99,5.64866472]
[1754772261714,0.73,183.02,183.01,5.64866472]
[1754772261907,0.03,183.02,183.0,31.64866472]
[1754772262131,0.03,183.02,183.01,5.64866472]
[1754772262336,0.03,183.02,183.01,31.64866472]
[1754772265410,0.03,183.02,183.01,47.45488029]
[1754772265610,0.03,183.02,183.01,52.91906257]
[1754772267841,0.03,183.02,183.01,86.51488029]
[1754772268041,0.03,183.02,183.01,85.81488029]
[1754772268843,0.03,183.02,183.01,80.16621557]
[1754772269034,0.03,183.02,183.01,85.81488029]
[1754772274132,0.03,183.02,183.01,91.27906257]
[1754772274332,0.03,183.02,183.01,91.93906257]
[1754772274839,0.03,183.02,183.01,181.53906257]
[1754772275740,0.03,183.02,183.01,155.53906257]
[1754772279974,0.71,183.02,183.01,15.10621557]
[1754772280283,0.71,183.02,183.01,20.75488029]
[1754772280456,0.71,183.02,183.01,59.79488029]
[1754772281858,0.03,183.02,183.01,59.79488029]
[1754772283934,0.03,183.02,183.01,65.25906257]
[1754772284139,0.03,183.02,183.01,65.91906257]
[1754772285842,0.03,183.02,183.01,155.51906257]
[1754772287759,0.03,183.02,183.01,154.85906257]
[1754772288469,0.03,183.03,183.02,15.10621557]
[1754772288638,0.03,183.03,183.02,26.87876401]
[1754772289256,0.03,183.03,183.02,21.23009929]
[1754772289781,0.03,183.03,183.02,26.87876401]
[1754772291177,0.03,183.03,183.02,26.21876401]
[1754772291385,0.03,183.03,183.02,65.25876401]
[1754772291874,0.03,183.03,183.02,154.85876401]
[1754772292454,0.03,183.03,183.02,115.81876401]
[1754772292676,0.03,183.03,183.02,154.85876401]
[1754772293183,0.03,183.03,183.02,158.57051806]
[1754772295069,0.03,183.03,183.02,119.53051806]
[1754772295305,0.03,183.03,183.02,158.55051806]
[1754772296461,0.03,183.03,183.02,159.21051806]
[1754772296878,0.03,183.03,183.02,158.55051806]
[1754772298393,0.71,183.03,183.02,119.53051806]
[1754772298574,0.71,183.03,183.02,158.55051806]
[1754772298975,0.03,183.03,183.02,158.55051806]
[1754772300201,0.72,183.03,183.02,108.41796962]
[1754772300414,0.72,183.03,183.02,114.06663434]
[1754772300703,0.72,183.03,183.02,158.55051806]
[1754772300870,0.03,183.05,183.04,41.10621557]
[1754772301072,0.00050281,183.05,183.04,95.13529906]
[1754772301874,0.00050281,183.05,183.04,95.83529906]
[1754772302069,0.03,183.06,183.05,15.10621557]
[1754772302276,0.03,183.06,183.05,125.17828731]
[1754772303067,0.03,183.07,183.05,125.87828731]
[1754772303289,0.03,183.09,183.08,15.10621557]
[1754772303574,0.03,183.09,183.08,63.48663434]
[1754772303786,0.72,183.12,183.11,26.0]
[1754772304010,0.72,183.12,183.11,74.38041877]
[1754772304381,0.72,183.12,183.11,79.84161695]
[1754772305780,0.72,183.12,183.11,79.89987432]
[1754772306178,0.72,183.12,183.11,82.59086759]
[1754772306784,0.03,183.12,183.11,82.59086759]
[1754772307204,0.72,183.12,183.11,82.59086759]
[1754772307586,0.72,183.12,183.11,82.57086759]
[1754772308198,0.03,183.12,183.11,82.57086759]
[1754772308577,0.03,183.12,183.11,76.92220287]
[1754772308779,0.72,183.12,183.11,38.10966941]
[1754772308990,0.72,183.12,183.11,35.41867614]
[1754772310000,0.72,183.12,183.11,74.41867614]
[1754772310686,0.72,183.12,183.11,68.77001142]
[1754772310888,0.72,183.12,183.11,74.41867614]
[1754772311800,0.72,183.12,183.11,3.77001142]
[1754772312327,0.72,183.12,183.11,9.41867614]
[1754772312695,0.72,183.12,183.11,35.41867614]
[1754772313029,0.03,183.12,183.11,55.98608989]
[1754772314595,0.03,183.12,183.11,55.96584255]
[1754772314997,0.03,183.12,183.11,50.31717783]
[1754772315194,0.72,183.12,183.11,50.50464437]
[1754772316396,0.72,183.12,183.11,55.96584255]
[1754772317304,0.72,183.12,183.11,50.31717783]
[1754772317508,0.72,183.12,183.11,35.3984288]
[1754772317724,0.72,183.12,183.11,74.3784288]
[1754772317911,0.72,183.12,183.11,50.50464437]
[1754772318113,0.03,183.12,183.11,50.50464437]
[1754772319026,0.03,183.12,183.11,55.96584255]
[1754772319331,0.03,183.12,183.11,29.96584255]